fUSD/lending_fUSD_20250207
["ID","MTS","AMOUNT","RATE_DAILY","PERIOD"]
[352044910,1738896655042,-867.46,0.00018081,2]
[352044911,1738896655051,-500.0,0.00018081,2]
[352044912,1738896655061,-645.22,0.00018081,2]
[352044913,1738896655071,-500.0,0.00018081,2]
[352044914,1738896655080,-500.0,0.00018081,2]
[352044915,1738896655089,-500.0,0.00018081,2]
[352044916,1738896655099,-500.0,0.00018081,2]
[352044917,1738896655108,-500.0,0.00018081,2]
[352044918,1738896655117,-500.0,0.00018081,2]
[352044919,1738896655127,-512.74,0.00018081,2]
[352044920,1738896655136,-500.0,0.00018081,2]
[352044921,1738896655146,-500.0,0.00018081,2]
[352044922,1738896655155,-200.0,0.00018081,2]
[352044923,1738896655165,-625.1,0.00018081,2]
[352044924,1738896655175,-500.0,0.00018081,2]
[352044925,1738896655186,-642.14,0.00018081,2]
[352044926,1738896655195,-575.14,0.00018081,2]
[352044927,1738896655204,-500.0,0.00018081,2]
[352044928,1738896655214,-500.0,0.00018081,2]
[352044929,1738896655223,-776.65,0.00018081,2]
[352044930,1738896655232,-500.0,0.00018081,2]
[352044931,1738896655242,-500.0,0.00018081,2]
[352044932,1738896655251,-1455.63,0.00018081,2]
[352044933,1738896655260,-1313.99,0.00018081,2]
[352044934,1738896655268,-500.0,0.00018081,2]
[352044935,1738896655277,-708.64,0.00018081,2]
[352044936,1738896655287,-510.1,0.00018081,2]
[352044937,1738896655297,-500.0,0.00018081,2]
[352044938,1738896655306,-500.0,0.00018081,2]
[352044939,1738896655316,-622.47,0.00018081,2]
[352044940,1738896655325,-823.05,0.00018081,2]
[352044941,1738896655335,-500.0,0.00018081,2]
[352044942,1738896655345,-500.0,0.00018081,2]
[352044943,1738896655354,-500.0,0.00018081,2]
[352044944,1738896655364,-1250.79,0.00018081,2]
[352044945,1738896655373,-500.0,0.00018081,2]
[352044946,1738896655382,-500.0,0.00018081,2]
[352044947,1738896655392,-500.0,0.00018081,2]
[352044948,1738896655401,-500.0,0.00018081,2]
[352044949,1738896655411,-500.0,0.00018081,2]
[352044950,1738896655421,-724.2,0.00018081,2]
[352044951,1738896655432,-680.91,0.00018081,2]
[352044952,1738896655441,-500.0,0.00018081,2]
[352044953,1738896655451,-659.63,0.00018081,2]
[352044954,1738896655462,-1305.77,0.00018081,2]
[352044955,1738896655474,-578.94,0.00018081,2]
[352044956,1738896655486,-500.0,0.00018081,2]
[352044957,1738896655496,-500.0,0.00018081,2]
[352044958,1738896655505,-500.0,0.00018081,2]
[352044959,1738896655515,-500.0,0.00018081,2]
[352044960,1738896655524,-500.0,0.00018081,2]
[352044961,1738896655534,-500.0,0.00018081,2]
[352044962,1738896655544,-500.0,0.00018081,2]
[352044963,1738896655554,-500.0,0.00018081,2]
[352044964,1738896655563,-785.02,0.00018081,2]
[352044965,1738896655573,-500.0,0.00018081,2]
[352044966,1738896655583,-628.06,0.00018081,2]
[352044967,1738896655592,-500.0,0.00018081,2]
[352044968,1738896655603,-500.0,0.00018081,2]
[352044969,1738896655613,-720.85,0.00018081,2]
[352044970,1738896655622,-500.0,0.00018081,2]
[352044971,1738896655632,-500.0,0.00018081,2]
[352044972,1738896655641,-500.0,0.00018081,2]
[352044973,1738896655651,-1153.1,0.00018081,2]
[352044974,1738896655663,-500.0,0.00018081,2]
[352044975,1738896655672,-500.0,0.00018081,2]
[352044976,1738896655683,-500.0,0.00018081,2]
[352044977,1738896655692,-500.0,0.00018081,2]
[352044978,1738896655702,-500.0,0.00018081,2]
[352044979,1738896655712,-954.63,0.00018081,2]
[352044980,1738896655722,-892.86,0.00018081,2]
[352044981,1738896655766,-500.0,0.00018081,2]
[352044982,1738896655775,-1351.18,0.00018081,2]
[352044983,1738896655785,-586.37,0.00018081,2]
[352044984,1738896655794,-556.09,0.00018081,2]
[352044985,1738896655804,-500.0,0.00018081,2]
[352044986,1738896655814,-579.34,0.00018081,2]
[352044987,1738896655823,-638.82,0.00018081,2]
[352044988,1738896655832,-732.27,0.00018081,2]
[352044989,1738896655842,-500.0,0.00018081,2]
[352044990,1738896655852,-500.0,0.00018081,2]
[352044991,1738896655861,-500.0,0.00018081,2]
[352044992,1738896655870,-500.0,0.00018082,2]
[352044993,1738896655880,-1000.0,0.00018082,4]
[352044994,1738896655889,-490.79917087,0.00018082,2]
[352044995,1738896655900,-629.0017916,0.00018082,2]
[352044996,1738896655909,-500.0,0.00018082,2]
[352044997,1738896655919,-500.0,0.00018082,2]
[352044998,1738896655928,-500.0,0.00018082,2]
[352044999,1738896655938,-300.0,0.00018082,2]
[352045000,1738896655949,-500.0,0.00018082,2]
[352045001,1738896655959,-500.0,0.00018082,2]
[352045002,1738896655968,-200.0,0.00018082,2]
[352045003,1738896655978,-2000.0,0.00018082,2]
[352045004,1738896655988,-549.2,0.00018085,2]
[352045005,1738896655998,-160.5701207,0.00018088,2]
[352045006,1738896656007,-200.263379,0.00018099,2]
[352045007,1738896656016,-879.86,0.00018099,2]
[352045008,1738896656026,-1700.34198836,0.000181,2]
[352045009,1738896656035,-288128.71936754,0.000181,2]
[352045010,1738896656047,-113591.86647255,0.000181,2]
[352045011,1738896656056,-500.0,0.00018108,2]
[352045012,1738896656066,-160.5701207,0.00018133,2]
[352045013,1738896656075,-150.0,0.00018136,2]
[352045014,1738896656084,-150.0,0.00018145,2]
[352045015,1738896656093,-500.0,0.00018208,2]
[352045016,1738896656102,-412.38566674,0.00018217,2]
[352045017,1738896656111,-168.283566,0.00018218,2]
[352045018,1738896656120,-173.536985,0.00018218,2]
[352045019,1738896656130,-500.0,0.00018218,2]
[352045020,1738896656139,-471.43641002,0.00018218,2]
[352045021,1738896656148,-867.46,0.00018218,2]
[352045022,1738896656157,-500.0,0.00018218,2]
[352045023,1738896656167,-645.22,0.00018218,2]
[352045024,1738896656177,-500.0,0.00018218,2]
[352045025,1738896656187,-500.0,0.00018218,2]
[352045026,1738896656196,-500.0,0.00018218,2]
[352045027,1738896656206,-500.0,0.00018218,2]
[352045028,1738896656215,-500.0,0.00018218,2]
[352045029,1738896656224,-500.0,0.00018218,2]
[352045030,1738896656233,-512.74,0.00018218,2]
[352045031,1738896656243,-500.0,0.00018218,2]
[352045032,1738896656253,-500.0,0.00018218,2]
[352045033,1738896656263,-200.0,0.00018218,2]
[352045034,1738896656275,-625.1,0.00018218,2]
[352045035,1738896656285,-347.20410545,0.00018218,2]
[352045036,1738896656296,-642.14,0.00018218,2]
[352045037,1738896656306,-575.14,0.00018218,2]
[352045038,1738896656317,-500.0,0.00018218,2]
[352045039,1738896656327,-500.0,0.00018218,2]
[352045040,1738896656338,-776.65,0.00018218,2]
[352045041,1738896656349,-500.0,0.00018218,2]
[352045042,1738896656359,-500.0,0.00018218,2]
[352045043,1738896656370,-1455.63,0.00018218,2]
[352045044,1738896656380,-1313.99,0.00018218,2]
[352045045,1738896656392,-500.0,0.00018218,2]
[352045046,1738896656401,-708.64,0.00018218,2]
[352045047,1738896656410,-510.1,0.00018218,2]
[352045048,1738896656420,-500.0,0.00018218,2]
[352045049,1738896656429,-500.0,0.00018218,2]
[352045050,1738896656439,-622.47,0.00018218,2]
[352045051,1738896656449,-823.05,0.00018218,2]
[352045052,1738896656459,-500.0,0.00018218,2]
[352045053,1738896656470,-500.0,0.00018218,2]
[352045054,1738896656481,-500.0,0.00018218,2]
[352045055,1738896656492,-1250.79,0.00018218,2]
[352045056,1738896656501,-500.0,0.00018218,2]
[352045057,1738896656511,-500.0,0.00018218,2]
[352045058,1738896656521,-500.0,0.00018218,2]
[352045059,1738896656532,-500.0,0.00018218,2]
[352045060,1738896656542,-500.0,0.00018218,2]
[352045061,1738896656551,-724.2,0.00018218,2]
[352045062,1738896656561,-680.91,0.00018218,2]
[352045063,1738896656574,-500.0,0.00018218,2]
[352045064,1738896656583,-659.63,0.00018218,2]
[352045065,1738896656596,-1305.77,0.00018218,2]
[352045066,1738896656606,-578.94,0.00018218,2]
[352045067,1738896656617,-500.0,0.00018218,2]
[352045068,1738896656627,-500.0,0.00018218,2]
[352045069,1738896656636,-500.0,0.00018218,2]
[352045070,1738896656647,-500.0,0.00018218,2]
[352045071,1738896656657,-500.0,0.00018218,2]
[352045072,1738896656667,-500.0,0.00018218,2]
[352045073,1738896656677,-500.0,0.00018218,2]
[352045074,1738896656687,-500.0,0.00018218,2]
[352045075,1738896656698,-785.02,0.00018218,2]
[352045076,1738896656708,-500.0,0.00018218,2]
[352045077,1738896656717,-628.06,0.00018218,2]
[352045078,1738896656727,-252.09482238,0.00018218,2]
[352045079,1738896656737,-500.0,0.00018218,2]
[352045080,1738896656747,-720.85,0.00018218,2]
[352045081,1738896656758,-500.0,0.00018218,2]
[352045082,1738896656767,-500.0,0.00018218,2]
[352045083,1738896656776,-500.0,0.00018218,2]
[352045084,1738896656787,-1153.1,0.00018218,2]
[352045085,1738896656796,-500.0,0.00018218,2]
[352045086,1738896656806,-500.0,0.00018218,2]
[352045087,1738896656816,-500.0,0.00018218,2]
[352045088,1738896656827,-500.0,0.00018218,2]
[352045089,1738896656836,-500.0,0.00018218,2]
[352045090,1738896656846,-954.63,0.00018218,2]
[352045091,1738896656856,-892.86,0.00018218,2]
[352045092,1738896656866,-500.0,0.00018218,2]
[352045093,1738896656877,-1351.18,0.00018218,2]
[352045094,1738896656887,-586.37,0.00018218,2]
[352045095,1738896656899,-556.09,0.00018218,2]
[352045096,1738896656909,-500.0,0.00018218,2]
[352045097,1738896656919,-579.34,0.00018218,2]
[352045098,1738896656930,-638.82,0.00018218,2]
[352045099,1738896656941,-732.27,0.00018218,2]
[352045100,1738896656951,-500.0,0.00018218,2]
[352045101,1738896656961,-500.0,0.00018218,2]
[352045102,1738896656972,-500.0,0.00018218,2]
[352045103,1738896656981,-500.0,0.00018219,2]
[352045104,1738896656990,-500.0,0.00018219,2]
[352045105,1738896657000,-500.0,0.00018219,2]
[352045106,1738896657010,-500.0,0.00018219,2]
[352045107,1738896657019,-300.0,0.00018219,2]
[352045108,1738896657028,-500.0,0.00018219,2]
[352045109,1738896657038,-500.0,0.00018219,2]
[352045110,1738896657047,-212.074865,0.00018226,2]
[352045111,1738896657056,-201.51103,0.00018226,2]
[352045112,1738896657066,-879.86,0.00018236,2]
[352045113,1738896657075,-150.0,0.00018245,2]
[352045114,1738896657086,-160.22,0.00018254,2]
[352045115,1738896657095,-150.0,0.00018273,2]
[352045116,1738896657105,-150.0,0.00018307,2]
[352045117,1738896657115,-500.0,0.00018308,2]
[352045118,1738896657125,-676.22000115,0.00018354,2]
[352045119,1738896657135,-168.283566,0.00018355,2]
[352045120,1738896657145,-173.536985,0.00018355,2]
[352045121,1738896657155,-500.0,0.00018355,2]
[352045122,1738896657165,-867.46,0.00018355,2]
[352045123,1738896657174,-500.0,0.00018355,2]
[352045124,1738896657187,-645.22,0.00018355,2]
[352045125,1738896657196,-500.0,0.00018355,2]
[352045126,1738896657206,-500.0,0.00018355,2]
[352045127,1738896657218,-500.0,0.00018355,2]
[352045128,1738896657227,-500.0,0.00018355,2]
[352045129,1738896657237,-500.0,0.00018355,2]
[352045130,1738896657246,-500.0,0.00018355,2]
[352045131,1738896657255,-512.74,0.00018355,2]
[352045132,1738896657265,-500.0,0.00018355,2]
[352045133,1738896657275,-500.0,0.00018355,2]
[352045134,1738896657284,-200.0,0.00018355,2]
[352045135,1738896657294,-625.1,0.00018355,2]
[352045136,1738896657304,-642.14,0.00018355,2]
[352045137,1738896657314,-575.14,0.00018355,2]
[352045138,1738896657323,-500.0,0.00018355,2]
[352045139,1738896657332,-500.0,0.00018355,2]
[352045140,1738896657341,-776.65,0.00018355,2]
[352045141,1738896657351,-544.89195477,0.00018355,2]
[352045142,1738896657360,-486.34750865,0.00018355,2]
[352045143,1738896657369,-1455.63,0.00018355,2]
[352045144,1738896657379,-1313.99,0.00018355,2]
[352045145,1738896657389,-500.0,0.00018355,2]
[352045146,1738896657398,-708.64,0.00018355,2]
[352045147,1738896657408,-510.1,0.00018355,2]
[352045148,1738896657417,-500.0,0.00018355,2]
[352045149,1738896657426,-500.0,0.00018355,2]
[352045150,1738896657439,-622.47,0.00018355,2]
[352045151,1738896657448,-823.05,0.00018355,2]
[352045152,1738896657458,-500.0,0.00018355,2]
[352045153,1738896657467,-500.0,0.00018355,2]
[352045154,1738896657477,-522.63280507,0.00018355,2]
[352045155,1738896657487,-1250.79,0.00018355,2]
[352045156,1738896657496,-500.0,0.00018355,2]
[352045157,1738896657506,-500.0,0.00018355,2]
[352045158,1738896657516,-253.76614645,0.00018355,2]
[352045159,1738896657531,-246.23385355,0.00018355,2]
[352045160,1738896657540,-500.0,0.00018355,2]
[352045161,1738896657550,-500.0,0.00018355,2]
[352045162,1738896657560,-59.69290716,0.00018355,2]
[352045163,1738896657571,-664.50709284,0.00018355,2]
[352045164,1738896657580,-680.91,0.00018355,2]
[352045165,1738896657590,-500.0,0.00018355,2]
[352045166,1738896657599,-659.63,0.00018355,2]
[352045167,1738896657609,-1305.77,0.00018355,2]
[352045168,1738896657619,-578.94,0.00018355,2]
[352045169,1738896657628,-500.0,0.00018355,2]
[352045170,1738896657637,-404.15088694,0.00018355,2]
[352045171,1738896657648,-95.84911306,0.00018355,2]
[352045172,1738896657658,-500.0,0.00018355,2]
[352045173,1738896657667,-500.0,0.00018355,2]
[352045174,1738896657677,-500.0,0.00018355,2]
[352045175,1738896657688,-500.0,0.00018355,2]
[352045176,1738896657698,-557.76080917,0.00018355,2]
[352045177,1738896657708,-500.0,0.00018355,2]
[352045178,1738896657717,-785.02,0.00018355,2]
[352045179,1738896657727,-261.37007777,0.00018355,2]
[352045180,1738896657738,-238.62992223,0.00018355,2]
[352045181,1738896657747,-149.26752241,0.00018355,2]
[352045182,1738896657759,-313.31365467,0.00018355,2]
[352045183,1738896657769,-165.47882292,0.00018355,2]
[352045184,1738896657779,-500.0,0.00018355,2]
[352045185,1738896657789,-720.85,0.00018355,2]
[352045186,1738896657798,-500.0,0.00018355,2]
[352045187,1738896657807,-500.0,0.00018355,2]
[352045188,1738896657817,-500.0,0.00018355,2]
[352045189,1738896657827,-1153.1,0.00018355,2]
[352045190,1738896657837,-500.0,0.00018355,2]
[352045191,1738896657847,-500.0,0.00018355,2]
[352045192,1738896657857,-500.0,0.00018355,2]
[352045193,1738896657867,-619.55515209,0.00018355,2]
[352045194,1738896657878,-500.0,0.00018355,2]
[352045195,1738896657889,-954.63,0.00018355,2]
[352045196,1738896657902,-892.86,0.00018355,2]
[352045197,1738896657913,-500.0,0.00018355,2]
[352045198,1738896657923,-146.25713787,0.00018355,2]
[352045199,1738896657935,-1204.92286213,0.00018355,2]
[352045200,1738896657945,-586.37,0.00018355,2]
[352045201,1738896657955,-556.09,0.00018355,2]
[352045202,1738896657965,-500.0,0.00018355,2]
[352045203,1738896657978,-579.34,0.00018355,2]
[352045204,1738896657989,-638.82,0.00018355,2]
[352045205,1738896657999,-732.27,0.00018355,2]
[352045206,1738896658009,-500.0,0.00018355,2]
[352045207,1738896658020,-500.0,0.00018355,2]
[352045208,1738896658031,-500.0,0.00018355,2]
[352045209,1738896658040,-500.0,0.00018356,2]
[352045210,1738896658050,-1000.0,0.00018356,4]
[352045211,1738896658059,-307.32176916,0.00018356,2]
[352045212,1738896658068,-500.0,0.00018356,2]
[352045213,1738896658078,-500.0,0.00018356,2]
[352045214,1738896658087,-300.0,0.00018356,2]
[352045215,1738896658096,-500.0,0.00018356,2]
[352045216,1738896658106,-484.70763366,0.00018356,2]
[352045217,1738896658115,-19549.18,0.00018356,2]
[352045218,1738896658125,-206.0,0.0001836,2]
[352045219,1738896658134,-150.0,0.00018361,2]
[352045220,1738896658143,-150.0,0.00018361,2]
[352045221,1738896658153,-150.0,0.00018366,2]
[352045222,1738896658162,-879.86,0.00018373,2]
[352045223,1738896658172,-150.0,0.00018376,2]
[352045224,1738896658181,-150.0,0.00018378,2]
[352045225,1738896658192,-1000.0,0.00018383,2]
[352045226,1738896658202,-150.0,0.00018385,2]
[352045227,1738896658212,-150.0,0.00018394,2]
[352045228,1738896658221,-500.0,0.00018408,2]
[352045229,1738896658232,-150.0,0.0001841,2]
[352045230,1738896658244,-150.0,0.00018416,2]
[352045231,1738896658253,-150.0,0.00018425,2]
[352045232,1738896658263,-1000.0,0.00018432,2]
[352045233,1738896658273,-150.0,0.00018445,2]
[352045234,1738896658283,-212.074865,0.00018454,2]
[352045235,1738896658293,-201.51103,0.00018454,2]
[352045236,1738896658304,-168.283566,0.00018492,2]
[352045237,1738896658314,-173.536985,0.00018492,2]
[352045238,1738896658325,-201.13,0.00018492,2]
[352045239,1738896658336,-867.46,0.00018492,2]
[352045240,1738896658346,-500.0,0.00018492,2]
[352045241,1738896658357,-645.22,0.00018492,2]
[352045242,1738896658369,-500.0,0.00018492,2]
[352045243,1738896658379,-500.0,0.00018492,2]
[352045244,1738896658389,-500.0,0.00018492,2]
[352045245,1738896658399,-500.0,0.00018492,2]
[352045246,1738896658409,-500.0,0.00018492,2]
[352045247,1738896658419,-500.0,0.00018492,2]
[352045248,1738896658429,-512.74,0.00018492,2]
[352045249,1738896658440,-258.42374842,0.00018492,2]
[352045250,1738896658450,-200.0,0.00018492,2]
[352045251,1738896658460,-625.1,0.00018492,2]
[352045252,1738896658470,-642.14,0.00018492,2]
[352045253,1738896658480,-575.14,0.00018492,2]
[352045254,1738896658490,-500.0,0.00018492,2]
[352045255,1738896658502,-500.0,0.00018492,2]
[352045256,1738896658512,-776.65,0.00018492,2]
[352045257,1738896658526,-1455.63,0.00018492,2]
[352045258,1738896658536,-1313.99,0.00018492,2]
[352045259,1738896658548,-500.0,0.00018492,2]
[352045260,1738896658558,-708.64,0.00018492,2]
[352045261,1738896658569,-510.1,0.00018492,2]
[352045262,1738896658579,-500.0,0.00018492,2]
[352045263,1738896658590,-500.0,0.00018492,2]
[352045264,1738896658600,-622.47,0.00018492,2]
[352045265,1738896658610,-823.05,0.00018492,2]
[352045266,1738896658620,-500.0,0.00018492,2]
[352045267,1738896658630,-500.0,0.00018492,2]
[352045268,1738896658640,-1250.79,0.00018492,2]
[352045269,1738896658650,-500.0,0.00018492,2]
[352045270,1738896658660,-500.0,0.00018492,2]
[352045271,1738896658670,-500.0,0.00018492,2]
[352045272,1738896658680,-500.0,0.00018492,2]
[352045273,1738896658690,-500.0,0.00018492,2]
[352045274,1738896658700,-724.2,0.00018492,2]
[352045275,1738896658709,-680.91,0.00018492,2]
[352045276,1738896658719,-500.0,0.00018492,2]
[352045277,1738896658729,-659.63,0.00018492,2]
[352045278,1738896658738,-1305.77,0.00018492,2]
[352045279,1738896658748,-578.94,0.00018492,2]
[352045280,1738896658758,-500.0,0.00018492,2]
[352045281,1738896658767,-500.0,0.00018492,2]
[352045282,1738896658776,-500.0,0.00018492,2]
[352045283,1738896658786,-500.0,0.00018492,2]
[352045284,1738896658795,-523.99138317,0.00018492,2]
[352045285,1738896658804,-500.0,0.00018492,2]
[352045286,1738896658814,-500.0,0.00018492,2]
[352045287,1738896658825,-785.02,0.00018492,2]
[352045288,1738896658834,-500.0,0.00018492,2]
[352045289,1738896658843,-628.06,0.00018492,2]
[352045290,1738896658854,-500.0,0.00018492,2]
[352045291,1738896658864,-720.85,0.00018492,2]
[352045292,1738896658874,-500.0,0.00018492,2]
[352045293,1738896658884,-500.0,0.00018492,2]
[352045294,1738896658896,-500.0,0.00018492,2]
[352045295,1738896658907,-1153.1,0.00018492,2]
[352045296,1738896658917,-500.0,0.00018492,2]
[352045297,1738896658927,-500.0,0.00018492,2]
[352045298,1738896658939,-500.0,0.00018492,2]
[352045299,1738896658949,-500.0,0.00018492,2]
[352045300,1738896658960,-954.63,0.00018492,2]
[352045301,1738896658970,-892.86,0.00018492,2]
[352045302,1738896658980,-1351.18,0.00018492,2]
[352045303,1738896658989,-500.0,0.00018492,2]
[352045304,1738896658999,-586.37,0.00018492,2]
[352045305,1738896659008,-556.09,0.00018492,2]
[352045306,1738896659017,-500.0,0.00018492,2]
[352045307,1738896659027,-579.34,0.00018492,2]
[352045308,1738896659036,-638.82,0.00018492,2]
[352045309,1738896659045,-732.27,0.00018492,2]
[352045310,1738896659054,-500.0,0.00018492,2]
[352045311,1738896659064,-500.0,0.00018492,2]
[352045312,1738896659075,-500.0,0.00018492,2]
[352045313,1738896659085,-152.0,0.00018493,7]
[352045314,1738896659094,-500.0,0.00018493,2]
[352045315,1738896659104,-500.0,0.00018493,2]
[352045316,1738896659113,-500.0,0.00018493,2]
[352045317,1738896659123,-420.58673083,0.00018493,2]
[352045318,1738896659132,-500.0,0.00018493,2]
[352045319,1738896659142,-150.0,0.00018495,2]
[352045320,1738896659152,-5337.57107898,0.000185,2]
[352045321,1738896659163,-166.18186527,0.00018508,2]
[352045322,1738896659172,-500.0,0.00018508,2]
[352045323,1738896659182,-879.86,0.0001851,2]
[352045324,1738896659193,-150.0,0.00018516,2]
[352045325,1738896659202,-500.0,0.00018521,2]
[352045326,1738896659212,-1000.0,0.00018521,2]
[352045327,1738896659222,-150.0,0.00018523,2]
[352045328,1738896659233,-150.0,0.00018524,2]
[352045329,1738896659242,-150.0,0.00018526,2]
[352045330,1738896659252,-412.38566674,0.00018533,2]
[352045331,1738896659262,-151.54275085,0.00018537,2]
[352045332,1738896659272,-150.0,0.00018537,2]
[352045333,1738896659282,-150.0,0.00018542,2]
[352045334,1738896659292,-150.0,0.00018547,2]
[352045335,1738896659302,-150.0,0.00018551,2]
[352045336,1738896659312,-1000.0,0.00018564,2]
[352045337,1738896659322,-160.5701207,0.00018569,2]
[352045338,1738896659331,-150.0,0.00018577,2]
[352045339,1738896659341,-150.0,0.00018587,2]
[352045340,1738896659351,-150.0,0.00018594,2]
[352045341,1738896659360,-154.7,0.000186,2]
[352045342,1738896659370,-154.7,0.000186,2]
[352045343,1738896659379,-500.0,0.00018608,2]
[352045344,1738896659388,-168.283566,0.00018629,2]
[352045345,1738896659398,-173.536985,0.00018629,2]
[352045346,1738896659407,-867.46,0.00018629,2]
[352045347,1738896659417,-500.0,0.00018629,2]
[352045348,1738896659427,-645.22,0.00018629,2]
[352045349,1738896659437,-500.0,0.00018629,2]
[352045350,1738896659447,-500.0,0.00018629,2]
[352045351,1738896659457,-500.0,0.00018629,2]
[352045352,1738896659467,-500.0,0.00018629,2]
[352045353,1738896659477,-565.66751359,0.00018629,2]
[352045354,1738896659487,-500.0,0.00018629,2]
[352045355,1738896659496,-512.74,0.00018629,2]
[352045356,1738896659506,-200.0,0.00018629,2]
[352045357,1738896659515,-625.1,0.00018629,2]
[352045358,1738896659526,-642.14,0.00018629,2]
[352045359,1738896659537,-575.14,0.00018629,2]
[352045360,1738896659547,-603.02015059,0.00018629,2]
[352045361,1738896659556,-500.0,0.00018629,2]
[352045362,1738896659566,-776.65,0.00018629,2]
[352045363,1738896659578,-1455.63,0.00018629,2]
[352045364,1738896659588,-1313.99,0.00018629,2]
[352045365,1738896659598,-500.0,0.00018629,2]
[352045366,1738896659609,-708.64,0.00018629,2]
[352045367,1738896659618,-510.1,0.00018629,2]
[352045368,1738896659628,-297.29387527,0.00018629,2]
[352045369,1738896659638,-500.0,0.00018629,2]
[352045370,1738896659648,-622.47,0.00018629,2]
[352045371,1738896659658,-823.05,0.00018629,2]
[352045372,1738896659668,-500.0,0.00018629,2]
[352045373,1738896659678,-500.0,0.00018629,2]
[352045374,1738896659689,-1250.79,0.00018629,2]
[352045375,1738896659699,-500.0,0.00018629,2]
[352045376,1738896659709,-500.0,0.00018629,2]
[352045377,1738896659719,-500.0,0.00018629,2]
[352045378,1738896659728,-607.72907866,0.00018629,2]
[352045379,1738896659738,-500.0,0.00018629,2]
[352045380,1738896659747,-724.2,0.00018629,2]
[352045381,1738896659757,-680.91,0.00018629,2]
[352045382,1738896659767,-500.0,0.00018629,2]
[352045383,1738896659777,-659.63,0.00018629,2]
[352045384,1738896659787,-1305.77,0.00018629,2]
[352045385,1738896659798,-578.94,0.00018629,2]
[352045386,1738896659808,-500.0,0.00018629,2]
[352045387,1738896659818,-500.0,0.00018629,2]
[352045388,1738896659827,-500.0,0.00018629,2]
[352045389,1738896659838,-500.0,0.00018629,2]
[352045390,1738896659848,-500.0,0.00018629,2]
[352045391,1738896659858,-500.0,0.00018629,2]
[352045392,1738896659868,-785.02,0.00018629,2]
[352045393,1738896659878,-500.0,0.00018629,2]
[352045394,1738896659888,-628.06,0.00018629,2]
[352045395,1738896659900,-500.0,0.00018629,2]
[352045396,1738896659910,-720.85,0.00018629,2]
[352045397,1738896659920,-500.0,0.00018629,2]
[352045398,1738896659931,-500.0,0.00018629,2]
[352045399,1738896659943,-500.0,0.00018629,2]
[352045400,1738896659952,-1153.1,0.00018629,2]
[352045401,1738896659962,-500.0,0.00018629,2]
[352045402,1738896659972,-500.0,0.00018629,2]
[352045403,1738896659983,-500.0,0.00018629,2]
[352045404,1738896659994,-500.0,0.00018629,2]
[352045405,1738896660154,-954.63,0.00018629,2]
[352045406,1738896660164,-892.86,0.00018629,2]
[352045407,1738896660174,-1351.18,0.00018629,2]
[352045408,1738896660183,-289.67908511,0.00018629,2]
[352045409,1738896660194,-586.37,0.00018629,2]